Cogmind - Beta 13 @@@ ROGUE MODE // 2024.04.09 @ 19:24:14 Player: Olafz Result: Destroyed by D-53 Grenadier with Mini Grenade Launcher Performance ------------- Evolutions (1) 500 Regions Visited (4) 800 Robots Destroyed (52) 260 Value Destroyed (1344) 1344 Prototype IDs (5) 100 Alien Tech Used (0) 0 Bonus (127) 127 TOTAL SCORE: 3131 Bonus ------- Follower Combat Kills 133 Friendly Fire -6 Cogmind --------- Core Integrity 0/400 Matter 253/300 Energy 100/100 System Corruption 9% Temperature Cool (0) Movement Core (350) Ox6 Location -9/Mines Parts ------- > --- POWER (1) -------- (None) > --- PROPULSION (2) --- (None) > --- UTILITY (4) ------ Large Storage Unit Hacking Suite > --- WEAPON (2) ------- (None) > --- INVENTORY (15) --- Ion Engine Ion Engine Light Nuclear Core Compact Wheel Medium Storage Unit Sensor Array Experimental Sensor Array Signal Interpreter Light Assault Rifle Peak State ------------ > --- POWER ------------ Light Nuclear Core > --- PROPULSION ------- Light Treads Light Treads > --- UTILITY ---------- Large Storage Unit Experimental Sensor Array > --- WEAPON ----------- Particle Gun Particle Gun > --- INVENTORY -------- Ion Engine Ion Engine Ion Engine Light Ion Engine Light Nuclear Core Light Treads Compact Wheel Improved Heat Sink Medium Storage Unit Sensor Array Sensor Array Light Armor Plating Hacking Suite Light Assault Rifle Mining Laser [Rating: 21] Favorites ----------- Power Light Nuclear Core Engine Light Ion Engine Power Core Light Nuclear Core Propulsion Light Treads Treads Light Treads Leg Aluminum Leg Wheel Compact Wheel Utility Large Storage Unit Device Sensor Array Storage Large Storage Unit Hackware Hacking Suite Protection Light Armor Plating Weapon Light Assault Rifle Energy Gun Particle Gun Ballistic Gun Light Assault Rifle Launcher Grenade Launcher Special Weapon Mining Laser Build | -11 -10 -10 -9 -9 ------- Run | Yrd Mat Min Mat Min Slots Evolved 2 | . . . 2 . Power . | . . . . . Propulsion . | . . . . . Utility 2 | . . . 2 . Weapon . | . . . . . Parts Attached 45 | . 14 15 15 1 Power 7 | . 1 5 1 . Engine 4 | . . 3 1 . Core 3 | . 1 2 . . Reactor . | . . . . . Propulsion 11 | . 3 4 4 . Treads 9 | . 2 3 4 . Leg 1 | . 1 . . . Wheel 1 | . . 1 . . Hover . | . . . . . Flight . | . . . . . Utility 8 | . 3 1 4 . Device 5 | . 2 1 2 . Storage 1 | . 1 . . . Processor . | . . . . . Hackware 1 | . . . 1 . Protection 1 | . . . 1 . Artifact . | . . . . . Weapon 19 | . 7 5 6 1 Energy Gun 4 | . . 2 2 . Energy Cannon . | . . . . . Ballistic Gun 13 | . 6 3 4 . Ballistic Cannon . | . . . . . Launcher 1 | . 1 . . . Special Weapon 1 | . . . . 1 Impact Weapon . | . . . . . Slashing Weapon . | . . . . . Piercing Weapon . | . . . . . Special Melee Weapon . | . . . . . Unidentified Prototypes 2 | . . 1 1 . Parts Lost 23 | . 2 5 8 8 Power 2 | . . . 1 1 Propulsion 7 | . . 2 3 2 Utility 3 | . . . 1 2 Weapon 11 | . 2 3 3 3 Highest Loss Streak 8 | . 2 2 7 8 To Critical Strikes . | . . . . . Average Slot Usage (%) 90 | . 94 90 85 73 Engine 7 | . 3 11 3 8 Core 5 | . 10 2 6 . Treads 21 | . 17 25 17 15 Leg 3 | . 10 . . . Device 12 | . 8 14 13 11 Storage 13 | . 14 14 11 11 Hackware 2 | . . . 10 11 Protection 1 | . . . 5 . Energy Gun 3 | . . 2 11 4 Ballistic Gun 17 | . 23 18 6 8 Launcher 1 | . 3 . . . Naked Turns . | . . . . . Heaviest Build 35 | 14 29 32 35 31 Greatest Support 40 | 20 40 40 40 40 Greatest Overweight (x) 9 | . . 9 7 6 Average Overweight (x) . | . . . . . Largest Inventory Capacity 15 | . 15 15 15 15 Average Capacity 13 | . 10 15 15 15 Most Carried 15 | . 8 15 15 10 Average Carried 9 | . 5 11 10 9 Final Capacity 15 | 8 15 15 15 15 Final Carried 15 | 6 8 15 10 9 Class Distribution -------------------- 77% | Mutant 22% | Scavenger-Mutant Dominant Class ---------------- Mutant | -10/Materials Mutant | -10/Mines Scavenger-Mutant | -9/Materials Mutant | -9/Mines Resources | -11 -10 -10 -9 -9 ----------- Run | Yrd Mat Min Mat Min Matter Collected 1132 | 200 227 522 160 23 Remotely . | . . . . . Salvage Created 1569 | . 556 543 456 14 Parts 120 | . 45 34 41 . Haulers Intercepted 1 | . 1 . . . Recyclers Shooed 1 | . . 1 . . Parts Field Recycled . | . . . . . Retrieved Matter . | . . . . . Parts Self-Destructed . | . . . . . Prevented . | . . . . . Kills | -11 -10 -10 -9 -9 ------- Run | Yrd Mat Min Mat Min Combat Hostiles Destroyed 43 | . 14 15 13 1 Guns 36 | . 7 15 13 1 AOE 7 | . 7 . . . Classes Destroyed 10 | . 7 3 . . Worker 1 | . 1 . . . Builder 3 | . 3 . . . Tunneler 1 | . . 1 . . Hauler 1 | . 1 . . . Operator 1 | . 1 . . . Watcher 4 | . 1 . 3 . Swarmer 12 | . 3 3 6 . Grunt 25 | . 11 10 4 . Sentry 4 | . . 1 3 . Assembled 2 | . . 1 . 1 Best Kill Streak 7 | . 7 3 5 1 Combat Bots Only 5 | . 5 3 4 1 Max Kills in Single Turn 4 | . 4 1 2 1 Gunslinging . | . . . . . Exploded 2 | . 2 . . . Melee . | . . . . . Uniques/NPCs Destroyed . | . . . . . Combat | -11 -10 -10 -9 -9 -------- Run | Yrd Mat Min Mat Min Hostile Shots Fired 360 | . 64 103 156 37 Missed 99 | . 21 27 38 13 Damage Taken 3222 | . 662 894 1096 570 Core 667 | . 47 198 262 160 Absorbed by Shields . | . . . . . Regen/Repaired (Parts) 82 | . 82 . . . Core Remaining (%) 51 | 100 . 2 . . Volleys Fired 212 | . 40 109 57 6 Largest 2 | . 2 2 2 2 Hottest 130 | . 50 130 88 123 Shots Fired 374 | . 77 185 101 11 Gun 365 | . 69 185 101 10 Cannon . | . . . . . Launcher 8 | . 8 . . . Special 1 | . . . . 1 Kinetic 287 | . 69 166 46 6 Thermal 79 | . . 19 55 5 Explosive 8 | . 8 . . . Electromagnetic . | . . . . . Robot Hit Streak 12 | . 12 11 11 2 Robot Miss Streak 6 | . 6 4 4 3 Penetration Max . | . . . . . Secondary Targets 7 | . 2 1 3 1 Max Gunslinging Chain 1 | . 1 1 1 1 Shots Hit Robots 177 | . 45 65 62 5 Core Hits 88 | . 36 28 21 3 Critical Kills . | . . . . . Critical Parts Destroyed . | . . . . . Critical Strikes 4 | . . . 4 . Burn 4 | . . . 4 . Melee Attacks . | . . . . . Impact . | . . . . . Slashing . | . . . . . Piercing . | . . . . . Sneak Attacks . | . . . . . Combat Hostiles . | . . . . . Follow-up Attacks . | . . . . . Damage Inflicted 2889 | . 1178 704 925 82 Guns 2106 | . 404 704 925 73 Cannons . | . . . . . Explosions 770 | . 770 . . . Melee . | . . . . . Ramming 13 | . 4 . . 9 Kinetic 1385 | . 404 518 419 44 Thermal 721 | . . 186 506 29 Explosive 770 | . 770 . . . Electromagnetic . | . . . . . Impact . | . . . . . Slashing . | . . . . . Piercing . | . . . . . Highest Corruption 9 | . . . 1 9 Average Corruption 1 | . . . 1 3 Corruption Purged . | . . . . . Corruption Blocked . | . . . . . Effects 6 | . . . 5 1 Message Errors 1 | . . . 1 . Matter Fused 2 | . . . 2 . Energy Discharges 1 | . . . 1 . Data Loss (minor) 1 | . . . . 1 Alerts 1 | . . . 1 . Overload Shots . | . . . . . Overflow Damage 68 | . 68 . . . Projectiles . | . . . . . Explosions 68 | . 68 . . . Melee . | . . . . . Knockbacks . | . . . . . Impact . | . . . . . Kinetic . | . . . . . Secondary . | . . . . . Self-Inflicted Damage 149 | . 149 . . . Shots 5 | . 5 . . . Rammed 4 | . . . . 4 Targets Rammed 6 | . 2 . . 4 Kicked 2 | . 2 . . . Crushed . | . . . . . Highest Temperature 548 | . 22 548 27 5 Average Temperature 65 | . 5 124 12 3 Received Heat Transfer 803 | . 189 384 150 80 Effects 4 | . . 4 . . Shutdowns 1 | . . 1 . . Short Circuit 2 | . . 2 . . Damage (minor) 1 | . . 1 . . Siege Activations . | . . . . . Robots Corrupted . | . . . . . Combat Hostiles . | . . . . . Parts Fried . | . . . . . Impact Corruptions . | . . . . . Robots Melted . | . . . . . Combat Hostiles . | . . . . . Parts Melted 4 | . . 1 3 . Heat Transferred 2072 | . . 444 1554 74 Parts Sabotaged . | . . . . . Parts Stolen . | . . . . . Parts Stripped . | . . . . . Power Chain Reactions . | . . . . . Alert | -11 -10 -10 -9 -9 ------- Run | Yrd Mat Min Mat Min Peak Influence 353 | . 290 143 353 59 Initial 59 | . . . 55 59 Average 119 | . 162 70 167 32 Maximum Alert Level 1 | . 1 . 1 . Low Security (%) 78 | . 55 100 68 100 Level 1 21 | . 44 . 31 . Level 2 . | . . . . . Level 3 . | . . . . . Level 4 . | . . . . . Level 5 . | . . . . . High Security . | . . . . . Max Security . | . . . . . Squads Dispatched 5 | . 4 . 1 . Investigation 4 | . 3 . 1 . Extermination . | . . . . . Reinforcement 1 | . 1 . . . Assault . | . . . . . Garrison . | . . . . . Intercept . | . . . . . Searches Triggered . | . . . . . Construction Impeded . | . . . . . Haulers Reinforced . | . . . . . Active Scanning Responses . | . . . . . Cargo Convoy Interrupts . | . . . . . Stealth | -11 -10 -10 -9 -9 --------- Run | Yrd Mat Min Mat Min Distress Signals 4 | . . 1 3 . Communications Jammed . | . . . . . Distress Signals . | . . . . . Times Spotted 87 | . 21 19 22 25 Peak Tracking Total 20 | . 5 4 10 20 Tactical Retreats 2 | . 1 . . 1 Traps | -11 -10 -10 -9 -9 ------- Run | Yrd Mat Min Mat Min Traps Triggered 3 | . 3 . . . Indirectly . | . . . . . Trap Hack Attempts . | . . . . . Triggered . | . . . . . Disarmed . | . . . . . Reprogrammed . | . . . . . Reused . | . . . . . Traps Extracted . | . . . . . Installed . | . . . . . Triggered . | . . . . . Machines | -11 -10 -10 -9 -9 ---------- Run | Yrd Mat Min Mat Min Machines Disabled 5 | . 4 1 . . Max in Single Turn 3 | . 3 1 . . Machines Repaired . | . . . . . Machines Dismantled . | . . . . . Machines Sabotaged . | . . . . . Overloaded Fab Kills . | . . . . . Hacking | -11 -10 -10 -9 -9 --------- Run | Yrd Mat Min Mat Min Machines Accessed 7 | . 6 . 1 . Terminals 6 | . 5 . 1 . Fabricators . | . . . . . Repair Stations 1 | . 1 . . . Recycling Units . | . . . . . Scanalyzers . | . . . . . Garrison Access . | . . . . . Total Hacks 24 | . 20 . 4 . Successful 15 | . 12 . 3 . Failed 9 | . 8 . 1 . Catastrophic . | . . . . . Database Lockouts . | . . . . . Manual 20 | . 17 . 3 . Terminals 22 | . 18 . 4 . Fabricators . | . . . . . Repair Stations 2 | . 2 . . . Recycling Units . | . . . . . Scanalyzers . | . . . . . Garrison Access . | . . . . . Terminal Hacks 5 | . 4 . 1 . Prototype ID Bank 2 | . 2 . . . Alert Level 2 | . 1 . 1 . Unreport Threat 1 | . 1 . . . Fabricator Hacks . | . . . . . Repair Station Hacks 2 | . 2 . . . Scan Component 1 | . 1 . . . Repair 1 | . 1 . . . Recycling Unit Hacks . | . . . . . Scanalyzer . | . . . . . Garrison Access Hacks . | . . . . . Unauthorized Hacks 7 | . 6 . 1 . Terminals 7 | . 6 . 1 . Botnet 6 | . 5 . 1 . Operators 1 | . 1 . . . Fabricators . | . . . . . Repair Stations . | . . . . . Recycling Units . | . . . . . Scanalyzers . | . . . . . Garrison Access . | . . . . . Data Cores Recovered . | . . . . . Used . | . . . . . Hacking Detections 6 | . 5 . 1 . Full Trace Events 5 | . 4 . 1 . Feedback Events 1 | . . . 1 . Corruption 1 | . . . 1 . Feedback Blocked . | . . . . . Robot Schematics Acquired . | . . . . . Robots Built . | . . . . . Authchips . | . . . . . Time . | . . . . . Total Robot Build Rating . | . . . . . Part Schematics Acquired . | . . . . . Parts Built . | . . . . . Authchips . | . . . . . Time . | . . . . . Total Part Build Rating . | . . . . . Parts Repaired 1 | . 1 . . . Time 26 | . 26 . . . Parts Recycled . | . . . . . Recycled Matter . | . . . . . Retrieved Matter . | . . . . . Retrieved Components . | . . . . . Parts Scanalyzed . | . . . . . Part Schematics Acquired . | . . . . . Parts Damaged . | . . . . . Bothacking | -11 -10 -10 -9 -9 ------------ Run | Yrd Mat Min Mat Min Used RIF Installer . | . . . . . Robots Hacked . | . . . . . Non-combat . | . . . . . Combat . | . . . . . Robot Hacks Applied . | . . . . . Relay Couplers Released . | . . . . . Fabnet Peak Effective % . | . . . . . Robots Rewired . | . . . . . Allies Hacked . | . . . . . Hacks Repelled . | . . . . . Allies | -11 -10 -10 -9 -9 -------- Run | Yrd Mat Min Mat Min Total Allies 3 | . . 3 . . Largest Group 3 | . . 3 . . Highest-Rated Group 40 | . . 40 . . Highest-Rated Ally 16 | . . 16 . . Total Orders . | . . . . . Ally Attacks 28 | . . 28 . . Total Damage 350 | . . 350 . . Kills 5 | . . 5 . . Allies Corrupted . | . . . . . Allies Melted . | . . . . . Intel | -11 -10 -10 -9 -9 ------- Run | Yrd Mat Min Mat Min Robot Analysis Total . | . . . . . Derelict Logs Recovered 1 | . . 1 . . Drone Launches . | . . . . . Drone Recoveries . | . . . . . Exploration | -11 -10 -10 -9 -9 ------------- Run | Yrd Mat Min Mat Min Turns Passed 2412 | . 814 1084 467 47 Spaces Moved 1046 | 1 429 447 160 9 Core 9 | . . 7 1 1 Treads 884 | . 277 440 159 8 Legs 153 | 1 152 . . . Wheels . | . . . . . Hover . | . . . . . Flight . | . . . . . Fastest Speed 120 | 120 120 160 160 160 Average Speed 161 | 120 145 170 174 190 Slowest Speed 500 | 120 160 500 400 350 Overloaded Moves . | . . . . . Propulsion Burnouts . | . . . . . Robots Hopped . | . . . . . Cave-ins Triggered . | . . . . . Exploration Rate (%) 37 | 2 78 79 16 13 Regions Visited 4 Branch Regions 2 Pre-discovered Areas 1 | . . 1 . . Known Exits Taken . | . . . . . Unknown Exits Taken 4 | 1 1 1 1 . Scrap Searched 2 | . . 2 . . Spaces Dug 1 | . . . . 1 Terrain Destroyed 36 | . 35 . . 1 Melee . | . . . . . Projectile 1 | . . . . 1 AOE 35 | . 35 . . . Terrain Rammed . | . . . . . Walls Destroyed . | . . . . . Machines Disabled . | . . . . . Actions | -11 -10 -10 -9 -9 --------- Run | Yrd Mat Min Mat Min Total 1420 | . 548 603 248 21 Wait 83 | . 51 23 8 1 Move 1042 | . 428 446 159 9 Hop . | . . . . . Pick Up 9 | . 4 3 2 . Fast Attach 16 | . 2 7 7 . Attach 16 | . 5 4 6 1 Detach 10 | . 3 6 1 . Swap 13 | . 7 4 2 . Drop 13 | . 6 1 6 . Fire 212 | . 40 109 57 6 Melee . | . . . . . Ram . | . . . . . Kick 2 | . 2 . . . Crush 4 | . . . . 4 Escape Stasis . | . . . . . Rewire . | . . . . . Trap . | . . . . . Miscellaneous . | . . . . . Route ------- -11/Scrapyard -10/Materials (discovered 4 exits: *Mat x3 / [*Min]) -10/Mines -9/Materials (discovered 2 exits: [*Min] / [*Sto]) -9/Mines History --------- Turn | Location | Event 1 | -11/Scrapyard | Discovered new exit (range 0) 1 | -11/Scrapyard | Entered Materials 143 | -10/Materials | Discovered new exit (range 9) 247 | -10/Materials | Repaired Assault Rifle 355 | -10/Materials | Build established: Mutant 424 | -10/Materials | Discovered new exit (range 15) 558 | -10/Materials | Discovered new exit (range 8) 713 | -10/Materials | Discovered new exit (range 16) 815 | -10/Materials | Entered Mines 878 | -10/Mines | Excavation squad dispatched 878 | -10/Mines | A large section of the Mines collapsed 1128 | -10/Mines | Excavation squad dispatched 1250 | -10/Mines | Found a damaged Exp. Sensor Array with a note attached 1254 | -10/Mines | Found Prototype Device 1254 | -10/Mines | Identified Exp. Sensor Array 1336 | -10/Mines | Core integrity fell below 50% 1378 | -10/Mines | Excavation squad dispatched 1507 | -10/Mines | Learned location of Zion (-6) 1525 | -10/Mines | Assisted by bots powering up and referring to "LRC-V3" 1628 | -10/Mines | Excavation squad dispatched 1746 | -10/Mines | Core integrity fell below 20% 1768 | -10/Mines | Lost 3 allies 1858 | -10/Mines | Discovered new exit (range 9) 1899 | -10/Mines | Entered Materials 1899 | -9/Materials | Evolved 2 slots: Utility x2 2092 | -9/Materials | Build established: Scavenger-Mutant 2196 | -9/Materials | Core integrity fell below 50% 2235 | -9/Materials | Lost 7 parts (1p2n1u3w) 2317 | -9/Materials | Discovered new exit (range 6) 2342 | -9/Materials | Discovered new exit (range 15) 2366 | -9/Materials | Entered Mines 2367 | -9/Mines | Assembled infested the area 2403 | -9/Mines | Core integrity fell below 20% 2413 | -9/Mines | Destroyed by D-53 Grenadier with Mini Grenade Launcher Last Messages --------------- Acquired 15 matter. Lgt. Ion Engine destroyed. as-69745 destroyed. Hvy. Assault Rifle destroyed. System corrupted by crushing effect (+2). System corrupted: Component data lost. as-78951 destroyed. as-28981 destroyed. as-48584 destroyed. as-67208 destroyed. as-40812 destroyed. as-41654 destroyed. as-75712 destroyed. as-31701 destroyed. The unstable cave ceiling collapses. as-41042 destroyed. Lgt. Treads destroyed. as-95012 destroyed. as-09263 destroyed. as-52093 destroyed. Map ----- +----------------------------------------------------+ | ???????????????????????????????????????? | | ???????????????????????????????????????? | | ???????????????????????????????????????? | | ???????????????????????????????????????? | | ???????????????????????????????????????? | | ???????????????????????????????????????? | | ???????????????????????????????????????? | | ???????????????????????????????????????? | | ???????????????????????????????????????? | | ???????????????????????????????????????? | | ???????????????????????????????????????? | | ???????????????????????????????????????? | | ?????????????????? #?????????????????? | | ????????????????? ?????????????????? | | ????????????????? #????????????????? | | ?????????????????? ###?????????????? | | ??????????????????? ?????????????? | | ??????????????????? ??????????????? | | ???????????????????? ??????????????? | | ????????????????????? ??????????????? | | ?????????????????????#u #??????????????? | | ?????????????????????#r ##????????""" #? | | ???????????????????###r #####? ?? | | ???????????????????# # # """??? | | ???????????????????# dd """??? | | ????????????######## a @ """??? | | ????????????# a #? | | ????????????# =% """ ?? | | ????????????# < """??? | | ????????????# # ""???? | | ????????????# ##? ??? | | ????????????#### # #??? """ ?? | | ???????????????## % # ##???? ""???? | | ??????????????? ## ?????""???? | | ??????????????# ?? ###????? ???? | | ??????????????# #?? #???????????? | | ?????????????? ####??? ???????????? | | ???????????????? ??????? ???????????? | | ?????????????????????????= #??????????? | | ????????????????????????? ##??????????? | | ?????????????????????????###???????????? | | ???????????????????????????????????????? | | ???????????????????????????????????????? | | ???????????????????????????????????????? | | ???????????????????????????????????????? | | ???????????????????????????????????????? | | ???????????????????????????????????????? | | ???????????????????????????????????????? | | ???????????????????????????????????????? | | ???????????????????????????????????????? | +----------------------------------------------------+ Best States ------------- Heat Dissipation 42 Energy Generation 14 Energy Capacity 250 Matter Stores 300 Matter Capacity 300 Sight Range 16 Robot Scan Range 20 Terrain Scan Density 10 Armor Coverage 150 Evasion (%) 55 Recoil Reduction 2 Offensive Hacking 10 Item Schematics ----------------- None Robot Schematics ------------------ None Fabricated ------------ Nothing Alien Tech Used ----------------- None Achievements -------------- Hunted Challenges ------------ None Game ------ Seed GatlingAntimatterShredder Manual? 0 Play Time 00:23:56 Cumulative 38.2 hours Start 2024.04.09 @ 18:54:21 End 2024.04.09 @ 19:24:14 Sessions 1 Manual Loads 0 Difficulty Rogue Special Mode None Game No. 102 Rogue 100 Adventurer 2 Explorer 0 Win Type - Total 0 Types 0/0/0/0/0/0/0/0/0 Lore% 28 Gallery% 35 Achievement% 26 Wizard Run 0 Options --------- Layout 2 ASCII 0 Keyboard 1 Movement Numpad Keybinds 1 Fullscreen 2 Font 24/Smallcaps Map View 50x44 Zoom Use 0% Tactical HUD 1 Map Filters NONE Filters NONE Steam 1 RUN: ebbcd8b1-4cb4-4c64-9e3b-55373514ca43